[Event "Late-Titled-Tuesday-Blitz-February-20-2024"]
[Site "Chess.com"]
[Date "2024.02.20"]
[Round "9"]
[White "Nouali_Mohamed"]
[Black "FREZZY23"]
[Result "1-0"]
[WhiteElo "2558"]
[BlackElo "2426"]
[TimeControl "180+1"]
[EndTime "15:41:03 PST"]
[Termination "Nouali_Mohamed won by resignation"]

1. e4 {[%clk 0:02:59.8]} 1... c5 {[%clk 0:02:53.8]} 2. Nf3 {[%clk 0:02:59.4]}
2... d6 {[%clk 0:02:53.4]} 3. d4 {[%clk 0:02:59.7]} 3... cxd4 {[%clk 0:02:54.3]}
4. Nxd4 {[%clk 0:03:00.6]} 4... Nf6 {[%clk 0:02:54.5]} 5. Nc3 {[%clk 0:03:01.2]}
5... a6 {[%clk 0:02:55]} 6. Bc4 {[%clk 0:03:01.6]} 6... e6 {[%clk 0:02:54.9]} 7.
Bb3 {[%clk 0:03:02]} 7... b5 {[%clk 0:02:54.8]} 8. Bg5 {[%clk 0:03:01.7]} 8...
Be7 {[%clk 0:02:54.4]} 9. Qe2 {[%clk 0:03:01.5]} 9... Qc7 {[%clk 0:02:54.2]} 10.
O-O-O {[%clk 0:02:59.9]} 10... Nc6 {[%clk 0:02:54.6]} 11. Nxc6 {[%clk
0:02:52.5]} 11... Qxc6 {[%clk 0:02:55.5]} 12. f4 {[%clk 0:02:53.1]} 12... Bb7
{[%clk 0:02:53.2]} 13. Kb1 {[%clk 0:02:50.9]} 13... h6 {[%clk 0:02:51.9]} 14.
Bxf6 {[%clk 0:02:50.7]} 14... Bxf6 {[%clk 0:02:51.8]} 15. Nd5 {[%clk 0:02:33.1]}
15... a5 {[%clk 0:02:38.9]} 16. Nxf6+ {[%clk 0:02:15.1]} 16... gxf6 {[%clk
0:02:37.5]} 17. Bd5 {[%clk 0:02:08.7]} 17... Qb6 {[%clk 0:02:29.1]} 18. Bxb7
{[%clk 0:02:07.3]} 18... Qxb7 {[%clk 0:02:30]} 19. Rxd6 {[%clk 0:02:07.5]} 19...
Ke7 {[%clk 0:02:29.9]} 20. Rhd1 {[%clk 0:02:06.3]} 20... Rhd8 {[%clk 0:02:29.2]}
21. Qd3 {[%clk 0:02:02.5]} 21... Rxd6 {[%clk 0:02:26.1]} 22. Qxd6+ {[%clk
0:02:03.4]} 22... Ke8 {[%clk 0:02:25.6]} 23. e5 {[%clk 0:01:41.7]} 23... fxe5
{[%clk 0:02:24.8]} 24. f5 {[%clk 0:01:40.8]} 24... exf5 {[%clk 0:02:15.9]} 25.
Qxe5+ {[%clk 0:01:39.7]} 25... Kf8 {[%clk 0:02:12.5]} 26. Qh8+ {[%clk
0:01:35.6]} 26... Ke7 {[%clk 0:02:12.7]} 27. Re1+ {[%clk 0:01:33.9]} 27... Kd7
{[%clk 0:02:12.9]} 28. Qf6 {[%clk 0:01:18.5]} 28... Qxg2 {[%clk 0:01:57.7]} 29.
Re7+ {[%clk 0:01:14.6]} 1-0

[Event "Late-Titled-Tuesday-Blitz-February-20-2024"]
[Site "Chess.com"]
[Date "2024.02.20"]
[Round "9"]
[White "babero_gordo"]
[Black "dolynachess"]
[Result "0-1"]
[WhiteElo "2191"]
[BlackElo "2455"]
[TimeControl "180+1"]
[EndTime "15:41:51 PST"]
[Termination "dolynachess won by resignation"]

1. e4 {[%clk 0:03:00.9]} 1... c5 {[%clk 0:02:59.7]} 2. d4 {[%clk 0:03:01.1]}
2... cxd4 {[%clk 0:02:59.3]} 3. c3 {[%clk 0:03:01.7]} 3... d3 {[%clk 0:02:59.9]}
4. Bxd3 {[%clk 0:03:01.1]} 4... d6 {[%clk 0:03:00.3]} 5. Nf3 {[%clk 0:03:01.3]}
5... Nf6 {[%clk 0:03:00.9]} 6. h3 {[%clk 0:03:01.5]} 6... Nc6 {[%clk 0:03:01.4]}
7. O-O {[%clk 0:03:00]} 7... g6 {[%clk 0:03:01.9]} 8. c4 {[%clk 0:03:00]} 8...
Bg7 {[%clk 0:03:02.1]} 9. Nc3 {[%clk 0:03:00.3]} 9... O-O {[%clk 0:03:02.7]} 10.
Be3 {[%clk 0:03:00.7]} 10... a6 {[%clk 0:03:03.2]} 11. Qd2 {[%clk 0:02:50.6]}
11... Rb8 {[%clk 0:03:03.6]} 12. Be2 {[%clk 0:02:42.4]} 12... Qa5 {[%clk
0:02:58.8]} 13. a3 {[%clk 0:02:33.5]} 13... Be6 {[%clk 0:02:53.5]} 14. b4 {[%clk
0:02:30.8]} 14... Qc7 {[%clk 0:02:46.9]} 15. Nd5 {[%clk 0:02:22.6]} 15... Qd7
{[%clk 0:02:25.7]} 16. Nb6 {[%clk 0:02:18.7]} 16... Qd8 {[%clk 0:02:23.4]} 17.
Bd3 {[%clk 0:02:04.7]} 17... Nd7 {[%clk 0:02:19.4]} 18. Nxd7 {[%clk 0:01:57.7]}
18... Qxd7 {[%clk 0:02:20.3]} 19. Rad1 {[%clk 0:01:55.1]} 19... Rfc8 {[%clk
0:02:18.3]} 20. Bh6 {[%clk 0:01:48.7]} 20... Ne5 {[%clk 0:01:57.7]} 21. Bxg7
{[%clk 0:01:36.3]} 21... Nxf3+ {[%clk 0:01:55.7]} 22. gxf3 {[%clk 0:01:36]}
22... Kxg7 {[%clk 0:01:56.4]} 23. Rc1 {[%clk 0:01:27.3]} 23... Bxh3 {[%clk
0:01:50.7]} 24. Qg5 {[%clk 0:01:23.7]} 24... Bxf1 {[%clk 0:01:44]} 25. Bxf1
{[%clk 0:01:23.4]} 25... Qe6 {[%clk 0:01:41.5]} 26. c5 {[%clk 0:01:21.1]} 26...
Qe5 {[%clk 0:01:32.8]} 27. Qe3 {[%clk 0:01:18.5]} 27... dxc5 {[%clk 0:01:27]}
28. bxc5 {[%clk 0:01:18.5]} 28... g5 {[%clk 0:01:25.3]} 29. Rc4 {[%clk
0:01:16.7]} 29... Rc7 {[%clk 0:01:22.2]} 30. Qc1 {[%clk 0:01:14.3]} 30... Rbc8
{[%clk 0:01:18.3]} 31. c6 {[%clk 0:01:13.2]} 31... Rxc6 {[%clk 0:01:18.2]} 32.
Qc2 {[%clk 0:01:06.5]} 32... Rxc4 {[%clk 0:01:15.3]} 0-1

[Event "Late-Titled-Tuesday-Blitz-February-20-2024"]
[Site "Chess.com"]
[Date "2024.02.20"]
[Round "9"]
[White "PawnEatingZombie"]
[Black "katharinareinecke"]
[Result "1-0"]
[WhiteElo "2211"]
[BlackElo "1987"]
[TimeControl "180+1"]
[EndTime "15:42:17 PST"]
[Termination "PawnEatingZombie won by resignation"]

1. e4 {[%clk 0:02:47.3]} 1... c6 {[%clk 0:02:59.2]} 2. Nf3 {[%clk 0:02:45.6]}
2... d5 {[%clk 0:02:58.4]} 3. d3 {[%clk 0:02:45.5]} 3... dxe4 {[%clk 0:02:56.5]}
4. dxe4 {[%clk 0:02:46.4]} 4... Qxd1+ {[%clk 0:02:55.6]} 5. Kxd1 {[%clk
0:02:47.3]} 5... Bg4 {[%clk 0:02:54.2]} 6. Be2 {[%clk 0:02:47.3]} 6... Nd7
{[%clk 0:02:47.1]} 7. Ne1 {[%clk 0:02:46.8]} 7... Bxe2+ {[%clk 0:02:46.2]} 8.
Kxe2 {[%clk 0:02:47.7]} 8... e6 {[%clk 0:02:43.8]} 9. a4 {[%clk 0:02:45.9]} 9...
Ngf6 {[%clk 0:02:42.5]} 10. f3 {[%clk 0:02:44.8]} 10... Bc5 {[%clk 0:02:41.7]}
11. Nd3 {[%clk 0:02:44.6]} 11... Bb6 {[%clk 0:02:40.2]} 12. a5 {[%clk
0:02:42.7]} 12... Bc7 {[%clk 0:02:39.9]} 13. Nd2 {[%clk 0:02:42.1]} 13... O-O
{[%clk 0:02:39.6]} 14. Nc4 {[%clk 0:02:40.8]} 14... b6 {[%clk 0:02:34.5]} 15.
Be3 {[%clk 0:02:38.3]} 15... b5 {[%clk 0:02:30.8]} 16. Nd2 {[%clk 0:02:37.7]}
16... Bd6 {[%clk 0:02:23.5]} 17. Nb3 {[%clk 0:02:36.9]} 17... Rfc8 {[%clk
0:02:16.9]} 18. Nbc5 {[%clk 0:02:17.5]} 18... Nxc5 {[%clk 0:02:16.3]} 19. Nxc5
{[%clk 0:02:17.9]} 19... Bxc5 {[%clk 0:02:14.3]} 20. Bxc5 {[%clk 0:02:17.9]}
20... Nd7 {[%clk 0:02:14.3]} 21. b4 {[%clk 0:02:11.2]} 21... Nxc5 {[%clk
0:02:13.3]} 22. bxc5 {[%clk 0:02:11.5]} 22... a6 {[%clk 0:02:10]} 23. Rhd1
{[%clk 0:02:11.5]} 23... Rd8 {[%clk 0:02:10.1]} 24. Rd6 {[%clk 0:02:02.9]} 24...
Rxd6 {[%clk 0:02:09.5]} 25. cxd6 {[%clk 0:02:03.8]} 25... e5 {[%clk 0:02:09.6]}
26. Rd1 {[%clk 0:01:45.8]} 26... Kf8 {[%clk 0:02:05.1]} 27. c4 {[%clk
0:01:34.7]} 27... b4 {[%clk 0:02:02.7]} 28. c5 {[%clk 0:01:32.3]} 28... Ke8
{[%clk 0:02:01.4]} 29. Kd3 {[%clk 0:01:32.7]} 29... Kd7 {[%clk 0:02:00.3]} 30.
Kc4 {[%clk 0:01:33]} 30... Rb8 {[%clk 0:01:55]} 31. Rb1 {[%clk 0:01:33.3]} 31...
Rb5 {[%clk 0:01:50.9]} 32. Rxb4 {[%clk 0:01:33.1]} 32... Rxa5 {[%clk 0:01:50.9]}
33. Rb7+ {[%clk 0:01:33.1]} 33... Kd8 {[%clk 0:01:49.7]} 34. Rxf7 {[%clk
0:01:32.7]} 34... Ra4+ {[%clk 0:01:46.3]} 35. Kb3 {[%clk 0:01:32.5]} 35... Rd4
{[%clk 0:01:44.1]} 36. Rxg7 {[%clk 0:01:30.9]} 36... a5 {[%clk 0:01:41.1]} 37.
Rxh7 {[%clk 0:01:29.8]} 37... a4+ {[%clk 0:01:41]} 38. Ka3 {[%clk 0:01:29.3]}
38... Rc4 {[%clk 0:01:38.5]} 39. h4 {[%clk 0:01:23.1]} 39... Rxc5 {[%clk
0:01:33.5]} 40. h5 {[%clk 0:01:22.3]} 40... Rc2 {[%clk 0:01:30.1]} 41. Rg7
{[%clk 0:01:20]} 41... c5 {[%clk 0:01:27.3]} 42. h6 {[%clk 0:01:20.4]} 42... Rc1
{[%clk 0:01:18.5]} 43. h7 {[%clk 0:01:16.2]} 43... Rh1 {[%clk 0:01:18]} 44. Rg8+
{[%clk 0:01:02.6]} 1-0

[Event "Late-Titled-Tuesday-Blitz-February-20-2024"]
[Site "Chess.com"]
[Date "2024.02.20"]
[Round "9"]
[White "KaydenTroffChess"]
[Black "otrov-11"]
[Result "1-0"]
[WhiteElo "2817"]
[BlackElo "2604"]
[TimeControl "180+1"]
[EndTime "15:42:30 PST"]
[Termination "KaydenTroffChess won by resignation"]

1. d4 {[%clk 0:03:00.9]} 1... Nf6 {[%clk 0:02:59.3]} 2. Nf3 {[%clk 0:03:00.8]}
2... e6 {[%clk 0:02:59.5]} 3. Bf4 {[%clk 0:03:00.3]} 3... b6 {[%clk 0:02:59.7]}
4. e3 {[%clk 0:03:00.3]} 4... Bb7 {[%clk 0:03:00.3]} 5. Nbd2 {[%clk 0:03:00.5]}
5... Be7 {[%clk 0:03:00.9]} 6. Bd3 {[%clk 0:03:00.1]} 6... c5 {[%clk 0:03:01.6]}
7. Nc4 {[%clk 0:02:59.7]} 7... d5 {[%clk 0:03:00.7]} 8. Nce5 {[%clk 0:03:00]}
8... O-O {[%clk 0:03:01]} 9. c3 {[%clk 0:02:59.5]} 9... Nc6 {[%clk 0:03:00.5]}
10. O-O {[%clk 0:02:59.5]} 10... Bd6 {[%clk 0:03:01.1]} 11. Bg5 {[%clk
0:02:57.4]} 11... Be7 {[%clk 0:02:55.2]} 12. Nxc6 {[%clk 0:02:46.8]} 12... Bxc6
{[%clk 0:02:54.7]} 13. Ne5 {[%clk 0:02:46.7]} 13... Bb7 {[%clk 0:02:48]} 14.
Bxf6 {[%clk 0:02:29.4]} 14... Bxf6 {[%clk 0:02:48.2]} 15. f4 {[%clk 0:02:28.9]}
15... a5 {[%clk 0:02:28.2]} 16. Rf3 {[%clk 0:02:03.8]} 16... g6 {[%clk
0:02:18.1]} 17. g4 {[%clk 0:01:46.4]} 17... Bg7 {[%clk 0:02:04.4]} 18. g5 {[%clk
0:01:46.1]} 18... f6 {[%clk 0:01:55.4]} 19. gxf6 {[%clk 0:01:45.7]} 19... Rxf6
{[%clk 0:01:55.8]} 20. Rg3 {[%clk 0:01:43.7]} 20... Ba6 {[%clk 0:01:48.3]} 21.
Bc2 {[%clk 0:01:35.3]} 21... cxd4 {[%clk 0:01:45.3]} 22. cxd4 {[%clk 0:01:35.9]}
22... Rc8 {[%clk 0:01:40.7]} 23. h4 {[%clk 0:01:34.2]} 23... Qc7 {[%clk
0:01:33]} 24. Rc1 {[%clk 0:01:29.8]} 24... Rf5 {[%clk 0:01:22.7]} 25. Bxf5
{[%clk 0:01:07.9]} 25... Qxc1 {[%clk 0:01:22.1]} 26. Bxe6+ {[%clk 0:01:08.4]}
26... Kf8 {[%clk 0:01:22.7]} 27. Qxc1 {[%clk 0:01:07.2]} 27... Rxc1+ {[%clk
0:01:23.6]} 28. Kh2 {[%clk 0:01:07.5]} 28... Bb7 {[%clk 0:01:09.6]} 29. h5
{[%clk 0:01:01.9]} 29... gxh5 {[%clk 0:01:05.1]} 30. Nd7+ {[%clk 0:00:59]} 30...
Ke7 {[%clk 0:00:59.1]} 31. Rxg7+ {[%clk 0:00:56.1]} 31... Kxe6 {[%clk
0:00:59.5]} 32. Nf8+ {[%clk 0:00:56.3]} 32... Kf6 {[%clk 0:00:54.7]} 33. Rxb7
{[%clk 0:00:54.3]} 33... Rc2+ {[%clk 0:00:55.6]} 34. Kg3 {[%clk 0:00:52.3]}
34... Rxb2 {[%clk 0:00:56.5]} 35. Rxb6+ {[%clk 0:00:51.4]} 35... Rxb6 {[%clk
0:00:54.3]} 36. Nd7+ {[%clk 0:00:51.6]} 1-0

[Event "Late-Titled-Tuesday-Blitz-February-20-2024"]
[Site "Chess.com"]
[Date "2024.02.20"]
[Round "9"]
[White "mishanick"]
[Black "AlexeiShirov"]
[Result "1-0"]
[WhiteElo "3000"]
[BlackElo "2844"]
[TimeControl "180+1"]
[EndTime "15:42:40 PST"]
[Termination "mishanick won by resignation"]

1. d4 {[%clk 0:03:00.9]} 1... d5 {[%clk 0:02:59.9]} 2. c4 {[%clk 0:03:01.4]}
2... c6 {[%clk 0:03:00.2]} 3. Nf3 {[%clk 0:03:02.2]} 3... Nf6 {[%clk 0:03:00.3]}
4. Nc3 {[%clk 0:03:02.9]} 4... e6 {[%clk 0:03:00.1]} 5. e3 {[%clk 0:03:03.5]}
5... Nbd7 {[%clk 0:02:59.5]} 6. Qc2 {[%clk 0:03:03.4]} 6... Bd6 {[%clk
0:02:58.8]} 7. Be2 {[%clk 0:03:03.4]} 7... O-O {[%clk 0:02:57.9]} 8. O-O {[%clk
0:03:03.9]} 8... dxc4 {[%clk 0:02:57.5]} 9. Bxc4 {[%clk 0:03:04.8]} 9... b5
{[%clk 0:02:57.1]} 10. Bd3 {[%clk 0:03:05.5]} 10... Bb7 {[%clk 0:02:57.1]} 11.
e4 {[%clk 0:03:05.8]} 11... e5 {[%clk 0:02:55.4]} 12. Bg5 {[%clk 0:03:06.2]}
12... h6 {[%clk 0:02:45.3]} 13. Bh4 {[%clk 0:03:06]} 13... exd4 {[%clk
0:02:39.8]} 14. Nxd4 {[%clk 0:03:05.4]} 14... Nc5 {[%clk 0:02:34.8]} 15. Rad1
{[%clk 0:02:06.9]} 15... Bxh2+ {[%clk 0:02:25.6]} 16. Kxh2 {[%clk 0:02:07.8]}
16... Ng4+ {[%clk 0:02:15.9]} 17. Kh3 {[%clk 0:01:59.9]} 17... Qxd4 {[%clk
0:02:13.2]} 18. Be2 {[%clk 0:01:50.8]} 18... Qe5 {[%clk 0:01:51.4]} 19. Bxg4
{[%clk 0:01:49.6]} 19... Bc8 {[%clk 0:01:41.2]} 20. Bxc8 {[%clk 0:01:41.2]}
20... Raxc8 {[%clk 0:01:40.7]} 21. f4 {[%clk 0:01:41.9]} 21... Qe6+ {[%clk
0:01:36]} 22. f5 {[%clk 0:01:41.9]} 22... Qc4 {[%clk 0:01:30.9]} 23. b3 {[%clk
0:01:36.9]} 23... Qb4 {[%clk 0:01:30.8]} 24. Be7 {[%clk 0:01:26.5]} 24... Rfe8
{[%clk 0:01:29.5]} 25. f6 {[%clk 0:01:21.7]} 25... gxf6 {[%clk 0:01:26.2]} 26.
Bxf6 {[%clk 0:01:22.6]} 26... Nxe4 {[%clk 0:01:25.5]} 27. Nxe4 {[%clk
0:01:13.6]} 27... Rxe4 {[%clk 0:01:24.7]} 28. Rf3 {[%clk 0:01:05.9]} 28... Rce8
{[%clk 0:00:54.6]} 29. Rg3+ {[%clk 0:01:00.1]} 29... Kf8 {[%clk 0:00:54.8]} 30.
a3 {[%clk 0:00:52.6]} 30... Qxa3 {[%clk 0:00:40.8]} 31. Bg7+ {[%clk 0:00:52.5]}
31... Kg8 {[%clk 0:00:39.4]} 32. Bb2+ {[%clk 0:00:52.3]} 1-0

[Event "Late-Titled-Tuesday-Blitz-February-20-2024"]
[Site "Chess.com"]
[Date "2024.02.20"]
[Round "9"]
[White "kleopl"]
[Black "egnfanclub"]
[Result "1-0"]
[WhiteElo "2517"]
[BlackElo "2390"]
[TimeControl "180+1"]
[EndTime "15:42:41 PST"]
[Termination "kleopl won by resignation"]

1. e4 {[%clk 0:03:00.9]} 1... e5 {[%clk 0:02:59.3]} 2. Nf3 {[%clk 0:03:00.3]}
2... Nc6 {[%clk 0:02:59.2]} 3. c3 {[%clk 0:02:59.8]} 3... Nf6 {[%clk 0:02:58.9]}
4. d4 {[%clk 0:02:59.5]} 4... Nxe4 {[%clk 0:02:58.2]} 5. d5 {[%clk 0:02:59.1]}
5... Ne7 {[%clk 0:02:57.9]} 6. Nxe5 {[%clk 0:02:58.4]} 6... Ng6 {[%clk
0:02:57.8]} 7. Qd4 {[%clk 0:02:57.2]} 7... Nxe5 {[%clk 0:02:54.5]} 8. Qxe4
{[%clk 0:02:56.7]} 8... Qe7 {[%clk 0:02:55]} 9. Be2 {[%clk 0:02:56.9]} 9... Ng6
{[%clk 0:02:43.3]} 10. Nd2 {[%clk 0:02:51.1]} 10... Qxe4 {[%clk 0:02:42.8]} 11.
Nxe4 {[%clk 0:02:52]} 11... d6 {[%clk 0:02:42.3]} 12. O-O {[%clk 0:02:50.4]}
12... Be7 {[%clk 0:02:42.4]} 13. Bb5+ {[%clk 0:02:47.3]} 13... Bd7 {[%clk
0:02:42.1]} 14. Bxd7+ {[%clk 0:02:46.2]} 14... Kxd7 {[%clk 0:02:43]} 15. c4
{[%clk 0:02:41.4]} 15... h6 {[%clk 0:02:41.9]} 16. b3 {[%clk 0:02:40.8]} 16...
Rhe8 {[%clk 0:02:32.5]} 17. Bb2 {[%clk 0:02:38.7]} 17... Bf8 {[%clk 0:02:32.6]}
18. Rfe1 {[%clk 0:02:31.1]} 18... Nf4 {[%clk 0:02:32.4]} 19. Ng3 {[%clk
0:02:00.9]} 19... Nd3 {[%clk 0:02:28.9]} 20. Rxe8 {[%clk 0:01:52.3]} 20... Rxe8
{[%clk 0:02:29.8]} 21. Bd4 {[%clk 0:01:51.9]} 21... g6 {[%clk 0:02:22]} 22. Kf1
{[%clk 0:01:46.3]} 22... a5 {[%clk 0:02:11.6]} 23. Rd1 {[%clk 0:01:45.2]} 23...
Nf4 {[%clk 0:02:08.8]} 24. Be3 {[%clk 0:01:38.6]} 24... g5 {[%clk 0:01:57]} 25.
Bxf4 {[%clk 0:01:38.5]} 25... gxf4 {[%clk 0:01:57.6]} 26. Nh5 {[%clk 0:01:38.8]}
26... f3 {[%clk 0:01:53.7]} 27. Nf6+ {[%clk 0:01:38.1]} 27... Kd8 {[%clk
0:01:51.3]} 28. Nxe8 {[%clk 0:01:37.7]} 28... fxg2+ {[%clk 0:01:51.8]} 29. Kxg2
{[%clk 0:01:38.1]} 29... Kxe8 {[%clk 0:01:52.7]} 30. Kf3 {[%clk 0:01:34.8]}
30... Bg7 {[%clk 0:01:52.2]} 31. Kg4 {[%clk 0:01:34.3]} 31... Ke7 {[%clk
0:01:51.1]} 32. Kf5 {[%clk 0:01:31.7]} 32... Bc3 {[%clk 0:01:47.3]} 33. Rg1
{[%clk 0:01:27]} 33... Kf8 {[%clk 0:01:47]} 34. f3 {[%clk 0:01:23.2]} 34... Be5
{[%clk 0:01:46.2]} 35. h4 {[%clk 0:01:20.9]} 35... c6 {[%clk 0:01:38.1]} 36.
dxc6 {[%clk 0:01:19.4]} 36... bxc6 {[%clk 0:01:39]} 37. Ke4 {[%clk 0:01:19.1]}
37... c5 {[%clk 0:01:37.9]} 38. Kd5 {[%clk 0:01:16.8]} 38... Ke7 {[%clk
0:01:30.6]} 39. Re1 {[%clk 0:01:16.6]} 39... Kf6 {[%clk 0:01:31]} 40. Rxe5
{[%clk 0:01:04.4]} 40... dxe5 {[%clk 0:01:30.8]} 41. Kxc5 {[%clk 0:01:04.6]}
41... Ke6 {[%clk 0:01:29.3]} 42. Kb6 {[%clk 0:00:43.8]} 42... Kd7 {[%clk
0:01:29.5]} 43. Kxa5 {[%clk 0:00:40.3]} 43... f5 {[%clk 0:01:29.1]} 44. Kb4
{[%clk 0:00:40.4]} 44... e4 {[%clk 0:01:26.2]} 45. fxe4 {[%clk 0:00:39.5]} 45...
f4 {[%clk 0:01:25.9]} 46. Kc3 {[%clk 0:00:39.6]} 46... f3 {[%clk 0:01:25.9]} 47.
Kd2 {[%clk 0:00:39.6]} 1-0

[Event "Late-Titled-Tuesday-Blitz-February-20-2024"]
[Site "Chess.com"]
[Date "2024.02.20"]
[Round "9"]
[White "ImportedItalianMaple"]
[Black "MAGMAchess02"]
[Result "1-0"]
[WhiteElo "2500"]
[BlackElo "2259"]
[TimeControl "180+1"]
[EndTime "15:42:44 PST"]
[Termination "ImportedItalianMaple won by resignation"]

1. Nf3 {[%clk 0:02:59.1]} 1... Nf6 {[%clk 0:02:59]} 2. g3 {[%clk 0:02:59.3]}
2... c5 {[%clk 0:02:59.1]} 3. Bg2 {[%clk 0:02:59.2]} 3... g6 {[%clk 0:02:57.4]}
4. O-O {[%clk 0:02:55.8]} 4... Bg7 {[%clk 0:02:57.7]} 5. c4 {[%clk 0:02:54.1]}
5... O-O {[%clk 0:02:57.8]} 6. Nc3 {[%clk 0:02:53.8]} 6... Nc6 {[%clk
0:02:57.3]} 7. d4 {[%clk 0:02:52.1]} 7... cxd4 {[%clk 0:02:57.1]} 8. Nxd4 {[%clk
0:02:52.7]} 8... Nxd4 {[%clk 0:02:56.8]} 9. Qxd4 {[%clk 0:02:53.6]} 9... d6
{[%clk 0:02:57.3]} 10. Be3 {[%clk 0:02:48.5]} 10... a6 {[%clk 0:02:54.3]} 11.
Qb6 {[%clk 0:02:43.6]} 11... Qxb6 {[%clk 0:02:48]} 12. Bxb6 {[%clk 0:02:44.5]}
12... Nd7 {[%clk 0:02:48.2]} 13. Be3 {[%clk 0:02:39.1]} 13... Bxc3 {[%clk
0:02:47.6]} 14. bxc3 {[%clk 0:02:38.8]} 14... Nc5 {[%clk 0:02:48.5]} 15. Rab1
{[%clk 0:02:34.8]} 15... Be6 {[%clk 0:02:38.3]} 16. Bxc5 {[%clk 0:02:29.7]}
16... dxc5 {[%clk 0:02:36.5]} 17. Rxb7 {[%clk 0:02:29.7]} 17... Bxc4 {[%clk
0:02:36.1]} 18. Rxe7 {[%clk 0:02:29.9]} 18... Rfe8 {[%clk 0:02:35.2]} 19. Rc7
{[%clk 0:02:00.8]} 19... Rac8 {[%clk 0:02:34.2]} 20. Rxc8 {[%clk 0:01:59.7]}
20... Rxc8 {[%clk 0:02:35.1]} 21. Bf3 {[%clk 0:01:30.3]} 21... Bxa2 {[%clk
0:02:32.2]} 22. Ra1 {[%clk 0:01:30.8]} 22... Bc4 {[%clk 0:02:31.8]} 23. Ra5
{[%clk 0:01:25.3]} 23... Bb5 {[%clk 0:02:27]} 24. Bb7 {[%clk 0:01:13.9]} 24...
Re8 {[%clk 0:02:18.5]} 25. Bxa6 {[%clk 0:01:13.3]} 25... Bxa6 {[%clk 0:02:14.6]}
26. Rxa6 {[%clk 0:01:13.9]} 26... Rxe2 {[%clk 0:02:14.8]} 27. Rc6 {[%clk
0:01:14.3]} 27... Re5 {[%clk 0:02:14.8]} 28. f4 {[%clk 0:01:12.9]} 28... Rd5
{[%clk 0:02:12.8]} 29. c4 {[%clk 0:01:08.4]} 29... Rf5 {[%clk 0:02:06]} 30. Kf2
{[%clk 0:01:05.3]} 30... h5 {[%clk 0:02:04.1]} 31. Ke3 {[%clk 0:01:04.3]} 31...
Kf8 {[%clk 0:02:00.7]} 32. Ke4 {[%clk 0:01:02.1]} 32... Ke7 {[%clk 0:02:00.9]}
33. h3 {[%clk 0:00:52]} 33... Kd7 {[%clk 0:01:53.4]} 34. Ra6 {[%clk 0:00:52.1]}
34... Ke7 {[%clk 0:01:30.1]} 35. g4 {[%clk 0:00:50.2]} 35... Rf6 {[%clk
0:01:04.8]} 36. Rxf6 {[%clk 0:00:49.5]} 36... Kxf6 {[%clk 0:01:05.7]} 37. Kd5
{[%clk 0:00:50]} 37... g5 {[%clk 0:01:03.4]} 38. f5 {[%clk 0:00:48.2]} 38... h4
{[%clk 0:00:58.5]} 39. Kd6 {[%clk 0:00:48.4]} 1-0

[Event "Late-Titled-Tuesday-Blitz-February-20-2024"]
[Site "Chess.com"]
[Date "2024.02.20"]
[Round "9"]
[White "thechesscorner64"]
[Black "janhelmer03"]
[Result "0-1"]
[WhiteElo "2487"]
[BlackElo "2290"]
[TimeControl "180+1"]
[EndTime "15:42:55 PST"]
[Termination "janhelmer03 won by checkmate"]

1. e4 {[%clk 0:03:00.9]} 1... c5 {[%clk 0:02:53.1]} 2. Nf3 {[%clk 0:03:00.2]}
2... d6 {[%clk 0:02:52.3]} 3. Nc3 {[%clk 0:02:59.5]} 3... e5 {[%clk 0:02:50.9]}
4. Bc4 {[%clk 0:02:58]} 4... Nc6 {[%clk 0:02:50.9]} 5. d3 {[%clk 0:02:57.6]}
5... h6 {[%clk 0:02:51.4]} 6. Nd2 {[%clk 0:02:57.9]} 6... g6 {[%clk 0:02:51.1]}
7. Nf1 {[%clk 0:02:58.1]} 7... Bg7 {[%clk 0:02:51.7]} 8. a4 {[%clk 0:02:57.6]}
8... Nge7 {[%clk 0:02:52]} 9. Ne3 {[%clk 0:02:58]} 9... O-O {[%clk 0:02:52.4]}
10. Ncd5 {[%clk 0:02:58.3]} 10... Nxd5 {[%clk 0:02:52.9]} 11. Bxd5 {[%clk
0:02:58.5]} 11... Ne7 {[%clk 0:02:52.4]} 12. Ba2 {[%clk 0:02:57.8]} 12... Kh7
{[%clk 0:02:52.8]} 13. O-O {[%clk 0:02:57.5]} 13... g5 {[%clk 0:02:50.1]} 14. c3
{[%clk 0:02:55.9]} 14... f5 {[%clk 0:02:49]} 15. exf5 {[%clk 0:02:56.2]} 15...
Nxf5 {[%clk 0:02:49.9]} 16. Nxf5 {[%clk 0:02:56.7]} 16... Bxf5 {[%clk
0:02:50.4]} 17. d4 {[%clk 0:02:57.3]} 17... exd4 {[%clk 0:02:48.8]} 18. cxd4
{[%clk 0:02:57.5]} 18... Bxd4 {[%clk 0:02:49.3]} 19. Bd5 {[%clk 0:02:51.4]}
19... Qd7 {[%clk 0:02:37.7]} 20. a5 {[%clk 0:02:48.5]} 20... Rae8 {[%clk
0:02:35.1]} 21. Ra3 {[%clk 0:02:44.1]} 21... Re5 {[%clk 0:02:33.4]} 22. Qb3
{[%clk 0:02:38.4]} 22... Bg6 {[%clk 0:02:17.3]} 23. Bd2 {[%clk 0:02:21.8]} 23...
Qf5 {[%clk 0:02:07.7]} 24. Bxb7 {[%clk 0:02:13.7]} 24... Re2 {[%clk 0:01:01.8]}
25. Qd1 {[%clk 0:00:11.7]} 25... Rxf2 {[%clk 0:00:52.8]} 26. Be3 {[%clk
0:00:09.4]} 26... Rxf1+ {[%clk 0:00:52.4]} 27. Qxf1 {[%clk 0:00:10]} 27... Qxf1#
{[%clk 0:00:52]} 0-1